bitfinex/quotes_ETHUSD_20241024
["timestamp","ask_amount","ask_price","bid_price","bid_amount"]
[1729737796985,3.53218,2548.0,2547.7,0.0800111]
[1729737799283,3.53218,2548.0,2547.8,0.24553778]
[1729737799585,3.53218,2548.0,2547.9,0.24553778]
[1729737799787,3.53218,2548.0,2547.9,0.32554888]
[1729737802887,9.13068717,2548.1,2547.9,0.32554888]
[1729737803097,9.13068717,2548.1,2547.9,0.0800111]
[1729737803403,9.13068717,2548.1,2547.6,0.7574]
[1729737803591,9.13068717,2548.1,2547.7,0.32555386]
[1729737803791,9.13068717,2548.1,2547.7,0.0800111]
[1729737804001,9.13068717,2548.1,2547.8,0.24554308]
[1729737804199,9.13068717,2548.1,2547.9,0.24554308]
[1729737804372,9.13064717,2548.1,2547.6,0.7574]
[1729737804578,9.13064717,2548.1,2547.7,0.3255529]
[1729737804778,9.13064717,2548.1,2547.8,0.2455418]
[1729737804981,5.59852717,2548.1,2547.9,0.2455418]
[1729737805203,4.82462717,2548.1,2548.0,0.0800111]
[1729737805413,4.82462717,2548.1,2547.6,0.7574]
[1729737805586,4.82462717,2548.1,2547.7,0.0800111]
[1729737810306,4.82462717,2548.1,2547.8,0.24553822]
[1729737810680,4.82462717,2548.1,2547.9,0.08010514]
[1729737812191,7.06389,2548.2,2547.9,0.08010514]
[1729737812617,3.53191,2548.2,2547.9,0.08010514]
[1729737812777,3.53206,2548.1,2547.9,0.08010514]
[1729737812987,3.53218,2548.0,2547.9,0.08010514]
[1729737813176,3.53218,2548.0,2547.6,0.7574]
[1729737813379,3.53218,2548.0,2547.7,0.08010514]
[1729737815926,3.53218,2548.0,2547.8,0.24553955]
[1729737816305,4.88346313,2548.1,2547.8,0.24553955]
[1729737816623,4.88346313,2548.1,2547.9,0.08010514]
[1729737817934,3.53218,2548.0,2547.9,0.08010514]
[1729737818105,3.53218,2548.0,2547.9,0.32565]
[1729737818308,3.53218,2548.0,2547.9,0.24554486]
[1729737818511,3.53218,2548.0,2547.9,0.32565]
[1729737818838,6.48988848,2548.0,2547.9,0.32565]
[1729737819133,6.48988848,2548.0,2547.9,0.08010514]
[1729737819295,3.5327,2547.7,2547.2,0.753]
[1729737819492,1.29255717,2547.6,2547.2,0.753]
[1729737819691,1.29255717,2547.6,2547.3,0.32042044]
[1729737819934,4.82525717,2547.7,2547.4,0.24557727]
[1729737820091,4.82525717,2547.7,2547.3,0.07484317]
[1729737820092,3.53273,2547.6,2547.5,0.24557727]
[1729737820291,7.06504,2547.8,2547.5,0.24557727]
[1729737820533,4.82519717,2547.7,2547.6,0.24557727]
[1729737821221,5.64879717,2547.7,2547.6,0.32042044]
[1729737821396,5.64879717,2547.7,2547.6,0.24557727]
[1729737821593,5.64874717,2547.7,2547.6,0.32043108]
[1729737821802,3.53295,2547.5,2547.0,0.753]
[1729737822105,2.0,2547.4,2547.1,0.32044417]
[1729737822333,2.0,2547.4,2547.2,0.245601]
[1729737822498,2.0,2547.4,2547.3,0.245601]
[1729737822700,2.0,2547.4,2547.0,0.753]
[1729737822896,2.0,2547.4,2547.3,0.07484317]
[1729737823097,2.0,2547.4,2547.3,0.24560154]
[1729737823433,6.35662,2547.4,2547.3,0.32044471]
[1729737823604,7.64917717,2547.4,2547.3,0.32044471]
[1729737823809,6.35662,2547.4,2547.3,0.32044471]
[1729737824334,7.64917717,2547.4,2547.3,0.07484317]
[1729737824519,8.49072848,2547.4,2547.3,0.07484317]
[1729737824690,4.95770848,2547.4,2546.8,0.753]
[1729737824898,3.53315,2547.3,2546.9,0.24560717]
[1729737825120,3.53315,2547.3,2547.0,0.24560717]
[1729737825308,3.53315,2547.3,2547.1,0.24560717]
[1729737825607,3.53315,2547.3,2547.2,0.24560717]
[1729737826036,2.8236,2547.4,2547.2,0.24560717]
[1729737826336,5.53302,2547.4,2547.0,1.29255717]
[1729737826536,2.0,2547.4,2547.1,0.24560207]
[1729737826739,2.0,2547.4,2547.3,4.82570717]
[1729737827030,2.0,2547.4,2547.3,5.82430924]
[1729737827892,2.0,2547.4,2547.3,5.8989959]
[1729737828096,2.0,2547.4,2547.3,6.84221449]
[1729737828340,2.0,2547.4,2547.3,6.92072142]
[1729737828832,2.0,2547.4,2547.3,6.92072109]
[1729737828994,2.0,2547.4,2547.3,6.84221449]
[1729737829399,2.0,2547.4,2547.3,6.92072119]
[1729737829613,2.0,2547.4,2547.3,6.84221449]
[1729737829831,2.0,2547.4,2547.3,6.59661242]
[1729737830211,2.0,2547.4,2547.3,6.84215987]
[1729737830736,2.0,2547.4,2547.3,6.92066595]
[1729737831425,2.0,2547.4,2547.3,6.84215987]
[1729737831802,2.0,2547.4,2547.3,6.9206652]
[1729737834430,2.0,2547.4,2547.3,6.84215987]
[1729737836745,2.0,2547.4,2547.3,7.135268]
[1729737837116,2.0,2547.4,2547.3,6.84215987]
[1729737837313,2.0,2547.4,2547.3,7.13526921]
[1729737838139,2.0,2547.4,2547.3,7.21377311]
[1729737838420,2.0,2547.4,2547.3,7.13526921]
[1729737840905,2.0,2547.4,2547.3,6.96822644]
[1729737841129,2.0,2547.4,2547.3,7.13530703]
[1729737842000,2.0,2547.4,2547.3,7.21381181]
[1729737842318,2.0,2547.4,2547.3,7.13530703]
[1729737843175,2.0,2547.4,2547.3,6.59661242]
[1729737843451,2.0,2547.4,2547.3,6.84215344]
[1729737847464,2.0,2547.4,2547.3,0.32022768]
[1729737847614,2.808,2547.4,2547.3,0.35635326]
[1729737847816,2.808,2547.4,2547.3,0.32022768]
[1729737850256,5.39311434,2547.4,2547.3,0.32022768]
[1729737850420,12.81872377,2547.4,2547.3,0.07468666]
[1729737850759,0.7733,2546.6,2546.3,0.03612558]
[1729737850910,5.60006717,2546.6,2546.4,0.24566596]
[1729737851254,5.60006717,2546.6,2546.5,0.24566596]
[1729737851457,0.7733,2546.5,2546.4,0.05998142]
[1729737851624,3.53462,2546.3,2546.1,0.24568277]
[1729737851954,3.53462,2546.3,2546.2,0.05557586]
[1729737852316,4.82717717,2546.3,2546.2,0.05557586]
[1729737852841,4.82717717,2546.3,2545.9,0.24570866]
[1729737853138,5.7197766,2546.3,2546.0,0.05557586]
[1729737853444,5.7197766,2546.3,2545.7,1.53826583]
[1729737853651,5.7197766,2546.3,2545.8,0.05557586]
[1729737853968,5.7197766,2546.3,2545.7,1.53826814]
[1729737854446,5.7197766,2546.3,2545.8,0.05557586]
[1729737854649,5.7197766,2546.3,2545.7,1.29255717]
[1729737854953,4.42721943,2546.3,2545.8,0.05557586]
[1729737855253,4.42721943,2546.3,2545.7,1.29255717]
[1729737855455,4.42721943,2546.3,2545.9,0.05557586]
[1729737855750,4.42721943,2546.3,2545.7,4.82791717]
[1729737855948,4.42721943,2546.3,2546.0,0.05557586]
[1729737856250,0.50160873,2546.2,2546.1,0.05557586]
[1729737856450,0.50160873,2546.2,2545.7,4.82791717]
[1729737856752,3.53462,2546.3,2545.8,0.05557586]
[1729737857056,3.53462,2546.3,2545.7,4.82791717]
[1729737857267,3.53462,2546.3,2545.9,0.05557586]
[1729737857548,3.53462,2546.3,2545.7,1.24255717]
[1729737857749,3.53462,2546.3,2546.0,0.05557586]
[1729737857952,0.56004772,2546.2,2546.0,0.05557586]
[1729737858194,0.56004772,2546.2,2545.7,1.29255717]
[1729737858328,3.53462,2546.3,2546.1,0.05557586]
[1729737858529,3.53462,2546.3,2545.7,1.29255717]
[1729737858855,3.53462,2546.3,2545.8,1.29255717]
[1729737859021,3.53462,2546.3,2545.9,0.05557586]
[1729737859236,0.7733,2546.4,2546.1,1.29255717]
[1729737859558,0.7733,2546.4,2546.0,1.29255717]
[1729737859756,0.7733,2546.4,2546.2,0.05557586]
[1729737859922,0.7733,2546.4,2546.0,1.29255717]
[1729737860122,0.7733,2546.4,2546.3,0.05557586]
[1729737860323,0.7733,2546.4,2546.0,1.29255717]
[1729737860550,0.7733,2546.4,2546.3,0.05557586]
[1729737860731,0.7733,2546.4,2546.1,1.29255717]
[1729737860931,3.53406,2546.7,2546.3,0.05557586]
[1729737861258,4.79599125,2546.6,2546.4,0.05681546]
[1729737861622,4.79599125,2546.6,2546.1,1.29255717]
[1729737861825,4.79599125,2546.6,2546.5,0.05681546]
[1729737861826,0.7733,2546.6,2546.5,0.05681546]
[1729737862023,0.7733,2546.6,2546.3,1.29255717]
[1729737862223,0.83219536,2546.8,2546.4,0.05681546]
[1729737862423,4.36611536,2546.8,2546.2,4.82714717]
[1729737862624,4.36611536,2546.8,2546.4,4.82694717]
[1729737862625,0.83219536,2546.8,2546.4,4.82694717]
[1729737863126,0.83219536,2546.8,2546.5,0.05681546]
[1729737863525,0.83219536,2546.8,2546.5,1.34937263]
[1729737863768,3.53352,2547.1,2546.7,1.29255717]
[1729737863928,3.53352,2547.1,2546.6,1.29255717]
[1729737864327,3.53352,2547.1,2546.7,0.05681546]
[1729737864548,3.59241411,2547.1,2546.7,0.05681546]
[1729737867138,3.53364,2547.0,2546.7,0.05681546]
[1729737867560,3.53364,2547.0,2546.5,1.29255717]
[1729737867768,3.53364,2547.0,2546.8,0.05681546]
[1729737867941,3.53364,2547.0,2546.5,1.29255717]
[1729737868473,3.53364,2547.0,2546.6,0.05681546]
[1729737868759,3.53364,2547.0,2546.6,1.34937263]
[1729737868968,3.53352,2547.1,2546.6,1.34937263]
[1729737869266,7.06708,2547.1,2546.6,1.34937263]
[1729737870129,7.06704,2547.1,2546.6,1.34937263]
[1729737870553,3.53352,2547.1,2546.7,1.29255717]
[1729737870755,4.28853,2547.3,2546.7,1.29255717]
[1729737870965,3.53342,2547.2,2546.7,1.29255717]
[1729737871262,3.53342,2547.2,2546.8,0.05681546]
[1729737871558,4.28853,2547.3,2546.8,0.05681546]
[1729737871723,3.53343,2547.1,2546.8,0.05681546]
[1729737872857,4.82598717,2547.1,2546.8,0.05681546]
[1729737873060,2.0,2547.4,2546.3,2.04305717]
[1729737873061,3.5339,2546.8,2546.3,2.04305717]
[1729737873434,4.289,2546.9,2546.4,1.37109265]
[1729737874033,3.53386,2546.8,2546.3,2.04305717]
[1729737874360,7.82283,2546.9,2546.3,5.57758717]
[1729737874565,4.289,2546.9,2546.3,5.57758717]
[1729737875547,4.289,2546.9,2546.3,5.82321591]
[1729737876159,4.84715572,2546.9,2546.3,2.28868591]
[1729737876327,3.53384,2546.8,2546.3,0.24562874]
[1729737876533,3.53384,2546.8,2546.4,0.24562874]
[1729737876846,3.5337,2546.9,2546.5,0.7505]
[1729737877046,3.5337,2546.9,2546.5,0.99612874]
[1729737877229,4.28881,2547.1,2546.5,2.28868591]
[1729737877427,0.55813672,2547.0,2546.6,0.24562874]
[1729737877628,4.28853,2547.3,2546.7,4.82649717]
[1729737877827,3.53329,2547.2,2546.6,8.36061717]
[1729737878150,3.53329,2547.2,2546.7,1.53819403]
[1729737878341,4.28853,2547.3,2546.7,4.82646717]
[1729737878544,5.58108717,2547.3,2546.7,3.53391]
[1729737879165,3.53323,2547.3,2546.9,0.7748]
[1729737880434,2.0,2547.4,2547.0,0.07852072]
[1729737880667,2.0,2547.4,2547.0,3.61207586]
[1729737881161,2.0,2547.4,2547.0,3.53356]
[1729737882133,2.0,2547.4,2547.0,4.90463305]
[1729737882329,2.0,2547.4,2547.0,3.53356]
[1729737882770,2.0,2547.4,2546.9,0.7748]
[1729737883066,2.0,2547.4,2546.9,4.86858972]
[1729737883377,3.53322,2547.3,2546.9,0.7748]
[1729737884168,3.53322,2547.3,2546.8,3.53374]
[1729737885567,4.82573717,2547.3,2546.7,4.30878]
[1729737885775,8.35895717,2547.3,2546.7,4.30878]
[1729737885936,7.0664,2547.3,2546.7,5.60133717]
[1729737886132,7.0664,2547.3,2546.7,6.51847362]
[1729737886332,7.0664,2547.3,2546.7,5.22591645]
[1729737886541,3.53318,2547.3,2546.7,5.22591645]
[1729737886746,7.06642,2547.3,2546.7,5.22591645]
[1729737887070,7.06642,2547.3,2546.7,6.51847362]
[1729737887366,7.06642,2547.3,2546.7,5.26191252]
[1729737887569,3.53318,2547.3,2546.7,5.26191252]
[1729737887956,3.53318,2547.3,2546.8,0.05470144]
[1729737888566,3.53331,2547.2,2546.8,0.05470144]
[1729737888961,3.53344,2547.1,2546.8,0.05470144]
[1729737891653,4.82573717,2547.3,2546.8,0.05470144]
[1729737891977,3.53329,2547.2,2546.8,0.05470144]
[1729737892333,3.53329,2547.2,2546.8,0.0907277]
[1729737893752,4.35065497,2547.5,2546.9,1.37108161]
[1729737893954,4.35065497,2547.5,2547.0,0.7847]
[1729737894156,4.35065497,2547.5,2547.0,4.37305527]
[1729737894875,0.05888497,2547.5,2547.0,4.37305527]
[1729737895232,0.05888497,2547.5,2547.0,7.90653527]
[1729737895475,0.05888497,2547.5,2547.0,4.37297527]
[1729737895973,0.05888497,2547.5,2547.0,7.90644527]
[1729737896379,0.05888497,2547.5,2547.0,6.5890286]
[1729737896566,0.05888497,2547.5,2547.1,3.53335]
[1729737896869,0.05888497,2547.5,2547.2,0.05487034]
[1729737897650,3.53246,2547.8,2547.3,0.7847]
[1729737898057,4.82501717,2547.8,2547.4,0.05473897]
[1729737898377,3.53246,2547.8,2547.4,0.05473897]
[1729737899054,4.82501717,2547.8,2547.4,0.05473897]
[1729737900703,3.53197,2548.2,2547.4,0.05473897]
[1729737900704,3.53158,2548.5,2547.7,4.82514717]
[1729737900991,3.53158,2548.5,2547.9,2.07725717]
[1729737900992,4.34269,2548.4,2547.9,2.07725717]
[1729737901190,4.34264,2548.4,2547.9,0.7847]
[1729737901391,4.44845772,2548.3,2547.9,0.7847]
[1729737901890,4.44845772,2548.3,2548.0,0.05444814]
[1729737902460,4.44845772,2548.3,2547.7,5.90411814]
[1729737902671,4.44845772,2548.3,2547.8,0.0526332]
[1729737902874,4.44845772,2548.3,2547.7,3.53257]
[1729737903279,3.53202,2548.2,2547.8,0.0526332]
[1729737903605,3.53202,2548.2,2547.0,3.53356]
[1729737903606,3.53245,2547.8,2547.0,3.53356]
[1729737903760,0.811,2547.9,2546.9,3.5336]
[1729737903955,3.53289,2547.5,2546.9,3.5336]
[1729737904279,3.5328,2547.6,2547.0,3.88684]
[1729737904788,7.06532,2547.7,2547.1,3.53339]
[1729737905296,3.53275,2547.6,2547.1,3.53339]
[1729737906163,7.06557,2547.6,2547.1,3.53339]
[1729737906380,3.53275,2547.6,2547.1,3.53339]
[1729737907898,4.239279,2547.6,2547.0,0.7847]
[1729737908072,4.34401,2547.5,2547.0,0.7847]
[1729737908268,3.53316,2547.3,2547.0,0.7847]
[1729737908597,7.06638,2547.3,2546.8,0.7619]
[1729737908898,3.53302,2547.4,2546.8,0.7619]
[1729737909196,4.34397,2547.5,2546.9,3.53361]
[1729737909598,7.87692,2547.5,2546.9,3.53361]
[1729737909896,4.34395,2547.5,2546.9,3.53361]
[1729737910507,4.34395,2547.5,2547.0,3.53355]
[1729737910799,7.87691,2547.5,2546.9,3.53361]
[1729737911009,3.53302,2547.4,2546.9,3.53361]
[1729737911580,4.34395,2547.5,2546.9,7.06723]
[1729737911811,5.03162916,2547.5,2546.9,7.06723]
[1729737911972,5.03162916,2547.5,2546.9,3.53361]
[1729737912172,3.53303,2547.4,2546.9,3.53361]
[1729737912701,8.56457916,2547.5,2546.9,7.06723]
[1729737912903,8.56459916,2547.5,2546.9,3.5336]
[1729737913201,4.22062916,2547.5,2547.0,3.61198081]
[1729737913381,3.53295,2547.5,2547.0,3.61198081]
[1729737913777,3.53295,2547.5,2547.0,3.53346]
[1729737916212,3.53281,2547.6,2547.0,3.53348]
[1729737916383,3.53281,2547.6,2547.1,0.7619]
[1729737916585,3.53291,2547.5,2547.1,0.7619]
[1729737917714,3.53291,2547.5,2547.2,0.04530096]
[1729737918014,3.53301,2547.4,2547.2,0.04530096]
[1729737919086,3.53315,2547.3,2547.2,0.04530096]
[1729737919286,3.53315,2547.3,2546.9,0.7619]
[1729737919616,3.53315,2547.3,2547.0,0.04525052]
[1729737920116,3.53301,2547.4,2547.0,0.04525052]
[1729737921413,3.53315,2547.3,2547.0,0.04525052]
[1729737922427,3.53317,2547.3,2547.0,0.04525052]
[1729737922920,3.53301,2547.4,2547.0,0.04525052]
[1729737928316,3.53281,2547.6,2547.0,4.01281757]
[1729737928506,3.53294,2547.5,2547.0,4.01281757]
[1729737928837,0.05887626,2547.7,2547.3,3.53311]
[1729737929143,0.05887626,2547.7,2547.5,4.36606]
[1729737929448,0.7841,2548.2,2547.6,3.53273]
[1729737929599,3.5322,2548.0,2547.5,0.8332]
[1729737929802,0.05887026,2547.9,2547.7,0.04525052]
[1729737930022,0.05887026,2547.9,2547.5,1.91171577]
[1729737930242,0.05887026,2547.9,2547.8,0.04525052]
[1729737930599,3.59119026,2547.9,2547.5,1.91171577]
[1729737930805,3.59119026,2547.9,2547.8,0.04525052]
[1729737931004,3.59119026,2547.9,2547.5,0.8332]
[1729737931305,3.59119026,2547.9,2547.5,1.55842577]
[1729737931550,3.59119026,2547.9,2547.6,0.04525052]
[1729737935269,3.53232,2547.9,2547.6,0.04525052]
[1729737937291,7.06474,2547.9,2547.6,0.04525052]
[1729737938481,3.53247,2547.8,2547.6,0.04525052]
[1729737942464,3.53259,2547.7,2547.6,0.04525052]
[1729737942875,3.53268,2547.7,2547.3,2.12540408]
[1729737943170,3.53275,2547.6,2547.3,2.12540408]
[1729737943360,3.53275,2547.6,2547.4,0.04502558]
[1729737944979,3.53287,2547.5,2547.4,0.04502558]
[1729737945288,3.53287,2547.5,2547.1,2.12540408]
[1729737945488,3.53287,2547.5,2547.4,0.04502558]
[1729737945808,3.53275,2547.6,2547.4,0.04502558]
[1729737946002,3.53275,2547.6,2547.1,2.12540408]
[1729737946160,3.53314,2547.4,2547.1,0.8332]
[1729737946369,3.53336,2547.2,2546.9,0.8332]
[1729737946696,3.53336,2547.2,2546.9,2.12540408]
[1729737947864,3.53336,2547.2,2547.0,0.04488498]
[1729737948281,4.31718,2547.4,2547.0,0.04488498]
[1729737948489,3.53308,2547.4,2547.0,0.04488498]
[1729737948663,3.53278,2547.6,2547.1,4.3666]
[1729737948863,3.5913736,2547.8,2547.2,3.53328]
[1729737949063,7.1239136,2547.8,2547.2,3.5784087]
[1729737949388,3.53264,2547.7,2547.2,3.5784087]
[1729737950175,3.53264,2547.7,2547.2,0.0451287]
[1729737950697,3.5913736,2547.8,2547.2,3.5783787]
[1729737950997,3.5326,2547.7,2547.2,3.5783787]
[1729737952214,0.0588736,2547.8,2547.3,4.44484059]
[1729737952530,0.0588736,2547.8,2547.4,3.533]
[1729737952692,0.0588736,2547.8,2547.4,0.0451287]
[1729737952884,3.5913436,2547.8,2547.4,0.0451287]
[1729737953426,7.1239236,2547.8,2547.4,0.0451287]
[1729737953921,3.5913436,2547.8,2547.4,0.0451287]
[1729737954223,3.53269,2547.7,2547.4,0.0451287]
[1729737954382,3.53275,2547.6,2547.4,0.0451287]
[1729737954896,4.3026,2547.7,2547.4,0.0451287]
[1729737959196,0.77,2547.7,2547.4,0.0451287]
[1729737959523,7.1238836,2547.8,2547.4,0.0451287]
[1729737960034,3.5913436,2547.8,2547.4,0.0451287]
[1729737960335,3.53259,2547.7,2547.4,0.0451287]
[1729737966511,0.78938636,2547.7,2547.4,0.0451287]
[1729737966714,3.53287,2547.5,2547.4,0.0451287]
[1729737967105,3.53287,2547.5,2547.2,0.29396085]
[1729737967308,3.53287,2547.5,2547.3,0.29396085]
[1729737967617,3.53287,2547.5,2547.0,4.33606]
[1729737967618,3.53287,2547.5,2547.4,0.04489433]
[1729737967822,3.53287,2547.5,2547.1,0.29397294]
[1729737968012,3.53287,2547.5,2547.4,0.04489433]
[1729737968211,3.53287,2547.5,2547.3,0.29397294]
[1729737968412,3.53287,2547.5,2547.4,0.04489433]
[1729737968640,4.239427,2547.5,2547.1,0.29396288]
[1729737968846,3.53287,2547.5,2547.4,0.04489433]
[1729737969012,3.53287,2547.5,2547.3,0.29396288]
[1729737969213,3.53287,2547.5,2547.0,5.6285502]
[1729737969427,4.35947,2547.5,2547.1,0.29398625]
[1729737969642,3.53309,2547.4,2547.2,0.29398625]
[1729737969805,3.53309,2547.4,2547.3,0.29398625]
[1729737970012,3.53268,2547.7,2547.3,1.58647645]
[1729737970247,7.06536,2547.7,2547.4,0.29398625]
[1729737970425,7.86044336,2547.7,2547.2,1.2924902]
[1729737970626,7.86044336,2547.7,2547.5,0.04489433]
[1729737970815,0.79508336,2547.7,2547.4,1.11800032]
[1729737971015,3.53246,2547.8,2547.6,0.04489433]
[1729737971219,3.53246,2547.8,2547.4,0.8241]
[1729737971412,3.59133263,2547.8,2547.5,0.04489433]
[1729737972620,3.53273,2547.6,2547.5,0.04489433]
[1729737972834,3.53273,2547.6,2547.1,1.2924902]
[1729737972835,3.53293,2547.5,2547.1,0.8241]
[1729737973015,7.06623,2547.4,2547.1,0.8241]
[1729737973210,7.06623,2547.4,2546.8,0.8241]
[1729737973211,1.2924902,2547.4,2546.8,0.8241]
[1729737973430,3.53356,2547.1,2546.8,0.8241]
[1729737973612,3.53365,2547.0,2546.6,0.8241]
[1729737973808,3.53365,2547.0,2546.6,2.1165902]
[1729737974039,3.53365,2547.0,2546.6,0.8241]
[1729737974238,7.06709,2547.1,2546.6,2.1165902]
[1729737974445,3.53353,2547.1,2546.6,0.8241]
[1729737974663,3.53353,2547.1,2546.6,2.1165902]
[1729737974819,3.53363,2547.0,2546.6,2.1165902]
[1729737975023,3.53398,2546.7,2546.4,0.8241]
[1729737975517,3.53411,2546.7,2546.2,1.2924902]
[1729737976251,3.53411,2546.7,2546.1,7.89354]
[1729737976552,3.53411,2546.7,2546.1,4.3588]
[1729737976756,3.53411,2546.7,2546.2,3.53466]
[1729737977627,3.53411,2546.7,2546.2,3.61320001]
[1729737977949,3.53411,2546.7,2546.3,0.04401472]
[1729737983675,3.53384,2546.8,2546.3,0.04401472]
[1729737983866,3.53384,2546.8,2546.4,0.7622]
[1729737984257,7.06776,2546.8,2546.5,0.04491425]
[1729737984450,3.53384,2546.8,2546.5,0.04491425]
[1729737985585,8.72986502,2547.0,2546.5,0.04491425]
[1729737985768,0.7805,2547.2,2546.6,0.07853422]
[1729737985942,4.31379,2547.2,2546.7,4.29617]
[1729737986151,4.31379,2547.2,2546.8,0.04512045]
[1729737986688,3.53359,2547.0,2546.8,0.04512045]
[1729737987058,3.53359,2547.0,2546.5,4.29639]
[1729737987377,7.84721,2547.2,2546.5,5.079465]
[1729737987585,7.84721,2547.2,2546.6,3.57920171]
[1729737987744,4.31379,2547.2,2546.7,3.53397]
[1729737988163,4.31379,2547.2,2546.8,0.04510171]
[1729737988351,3.53343,2547.1,2546.8,0.04510171]
[1729737988575,4.31379,2547.2,2546.9,0.04510171]
[1729737988746,0.43726746,2547.1,2546.9,0.04510171]
[1729737988945,0.43726746,2547.1,2547.0,0.04510171]
[1729737989189,0.43726746,2547.1,2546.6,3.53412]
[1729737989369,7.84721,2547.2,2546.6,3.53412]
[1729737989547,4.31379,2547.2,2546.6,3.53412]
[1729737989752,3.53343,2547.1,2546.7,0.04510171]
[1729737991091,3.53329,2547.2,2546.7,3.57897171]
[1729737991256,3.53329,2547.2,2546.7,4.37435354]
[1729737991985,3.53329,2547.2,2546.8,0.7622]
[1729737992291,3.53321,2547.3,2546.8,4.29603]
[1729737992596,3.53336,2547.2,2546.9,0.04510171]
[1729737992782,0.353336,2547.1,2546.9,0.04510171]
[1729737992965,7.06672,2547.2,2546.9,0.04510171]
[1729737993166,3.53336,2547.2,2546.9,0.04510171]
[1729738000587,3.53345,2547.1,2546.9,0.04510171]
[1729738000776,4.88501618,2547.3,2546.6,5.58908088]
[1729738001100,3.53344,2547.1,2546.7,0.29045609]
[1729738001304,7.06697,2547.1,2546.8,0.24563555]
[1729738001594,3.53344,2547.1,2546.9,0.24563555]
[1729738001898,3.53344,2547.1,2546.9,0.04482054]
[1729738002211,4.31428,2546.9,2546.3,0.7622]
[1729738002372,3.53392,2546.8,2546.4,0.24565094]
[1729738002576,3.53392,2546.8,2546.5,0.24565094]
[1729738002771,3.53392,2546.8,2546.6,0.24565094]
[1729738002971,3.53392,2546.8,2546.3,4.29672]
[1729738003890,3.53392,2546.8,2546.3,5.58957088]
[1729738004192,4.31428,2546.9,2546.3,6.19017762]
[1729738004897,7.84808,2546.9,2546.4,1.29285088]
[1729738005302,7.84808,2546.9,2546.3,6.19017762]
[1729738005603,3.53386,2546.8,2546.3,6.19017762]
[1729738005776,4.31428,2546.9,2546.3,6.19017762]
[1729738006096,4.31428,2546.9,2546.3,6.19012762]
[1729738006467,7.84807,2546.9,2546.3,6.19012762]
[1729738007080,4.31428,2546.9,2546.3,9.72458762]
[1729738007277,4.314,2547.1,2546.6,2.05505088]
[1729738007603,3.5335,2547.1,2546.7,1.29285088]
[1729738007765,4.3725653,2547.3,2546.8,1.29285088]
[1729738007960,0.8393853,2547.3,2546.8,1.29285088]
[1729738008188,0.0588853,2547.3,2547.0,0.7622]
[1729738008437,3.5921353,2547.3,2547.0,0.7622]
[1729738008606,0.0588853,2547.3,2547.0,0.7622]
[1729738008803,0.0588853,2547.3,2547.1,0.04209493]
[1729738013070,0.0588853,2547.3,2547.1,4.13858651]
[1729738013268,3.53283,2547.6,2547.1,5.43143739]
[1729738013508,3.53283,2547.6,2547.1,4.13858651]
[1729738013706,4.82568088,2547.6,2547.1,0.60517651]
[1729738013908,4.82567088,2547.6,2547.1,0.60517651]
[1729738014269,3.53282,2547.6,2547.1,0.60517651]
[1729738014579,8.35849088,2547.6,2547.1,0.60517651]
[1729738014785,3.5329,2547.5,2547.1,0.60517651]
[1729738015190,4.82567088,2547.6,2547.1,0.60517651]
[1729738015798,7.06569,2547.6,2547.1,0.60517651]
[1729738016003,3.53288,2547.5,2547.1,0.04209493]
[1729738016199,4.82573088,2547.5,2547.1,0.04209493]
[1729738016499,3.53288,2547.5,2547.1,0.04209493]
[1729738017016,4.82573088,2547.5,2547.1,0.04209493]
[1729738017212,1.29285088,2547.4,2547.1,0.04209493]
[1729738017517,4.82573088,2547.5,2547.1,0.04209493]
[1729738018573,0.05888143,2547.4,2547.1,0.04209493]
[1729738026161,0.8274,2547.3,2547.1,0.04209493]
[1729738026318,4.82614088,2547.2,2547.1,0.04209493]
[1729738026866,4.82614088,2547.2,2546.7,0.03607274]
[1729738026867,3.53361,2547.0,2546.6,0.79237274]
[1729738027009,2.12025088,2546.9,2546.6,0.03607274]
[1729738027346,2.12025088,2546.9,2546.5,0.03607988]
[1729738027533,5.65396088,2546.9,2546.5,0.03607988]
[1729738027736,0.8274,2546.9,2546.5,3.57030988]
[1729738028540,0.8274,2546.9,2546.5,0.03607988]
[1729738028751,4.3611,2546.9,2546.5,0.03607988]
[1729738028936,0.8274,2546.9,2546.5,0.03607988]
[1729738029440,1.29285088,2546.8,2546.4,0.03607988]
[1729738029614,1.29285088,2546.6,2546.3,0.03607988]
[1729738029814,2.04535088,2546.5,2546.1,3.57078988]
[1729738030029,0.7525,2546.5,2546.1,3.53474]
[1729738030449,5.57962088,2546.5,2546.0,0.81437988]
[1729738030648,5.57962088,2546.5,2546.0,0.81435676]
[1729738030860,0.7525,2546.5,2546.0,4.31313]
[1729738031360,0.7525,2546.5,2546.1,3.5348]
[1729738031527,0.7525,2546.5,2546.1,3.53475]
[1729738031723,0.7525,2546.7,2546.2,3.53463]
[1729738031927,0.05889347,2546.9,2546.5,4.82702088]
[1729738032324,0.05889347,2546.9,2546.5,3.53417]
[1729738032923,0.05889347,2546.9,2546.5,4.82702088]
[1729738033134,0.05888143,2547.4,2546.4,0.85683392]
[1729738033135,0.7525,2547.5,2547.1,3.53332]
[1729738033441,0.7525,2547.8,2547.3,4.82589088]
[1729738033956,0.7525,2547.8,2547.3,3.53304]
[1729738034314,0.7525,2547.8,2547.2,2.42448288]
[1729738034315,5.57790088,2547.8,2547.2,1.131632]
[1729738034517,5.57790088,2547.8,2547.2,4.664902]
[1729738035539,4.29285088,2547.9,2547.3,4.82590088]
[1729738035842,3.53234,2547.9,2547.3,4.82590088]
[1729738036039,4.82519088,2547.9,2547.3,5.42165417]
[1729738036253,3.53234,2547.9,2547.3,4.12880329]
[1729738036471,3.53234,2547.9,2547.4,3.53299]
[1729738036873,0.7525,2548.0,2547.5,3.53286]
[1729738037164,3.53232,2547.9,2547.3,7.74035188]
[1729738037461,3.53232,2547.9,2547.4,3.53299]
[1729738037834,3.53232,2547.9,2547.5,0.03993797]
[1729738038509,3.53261,2547.7,2547.2,4.3115]
[1729738038670,3.960802,2547.9,2547.6,0.03993797]
[1729738038870,3.53247,2547.8,2547.6,0.03993797]
[1729738039164,3.53247,2547.8,2547.2,7.84468]
[1729738039369,3.960802,2547.9,2547.7,0.03966629]
[1729738039661,4.3568622,2547.9,2547.8,0.03966629]
[1729738039865,7.8892622,2547.9,2547.3,3.53312]